[Event "Titled Tuesday Blitz June 6 Early 2023"]
[White "Ziatdinov, Raset"]
[Black "Lee, Qing Aun"]
[WhiteFideId "2015323"]
[BlackFideId "5804167"]
[WhiteElo "2220"]
[BlackElo "2179"]
[Result "0-1"]
[Round "1"]
[TimeControl "180+2"]
[Date "2023.06.06"]
[WhiteClock "0:00:01"]
[BlackClock "0:00:04"]
[Board "133"]

1. e4 {[%clk 0:03:00]}  c5 {[%clk 0:02:59]} 2. Nf3 {[%clk 0:03:00]}  g6 {[%clk 0:02:59]} 3. d4 {[%clk 0:03:00]}  cxd4 {[%clk 0:02:59]} 4. Nxd4 {[%clk 0:03:01]}  Bg7 {[%clk 0:02:59]} 5. Nc3 {[%clk 0:03:01]}  Nc6 {[%clk 0:03:00]} 6. Be3 {[%clk 0:02:58]}  Nf6 {[%clk 0:03:00]} 7. f3 {[%clk 0:02:55]}  O-O {[%clk 0:03:00]} 8. Bc4 {[%clk 0:02:55]}  a6 {[%clk 0:02:51]} 9. Qd2 {[%clk 0:02:53]}  Qc7 {[%clk 0:02:48]} 10. Bb3 {[%clk 0:02:50]}  b5 {[%clk 0:02:48]} 11. O-O {[%clk 0:02:48]}  Bb7 {[%clk 0:02:47]} 12. Rad1 {[%clk 0:02:47]}  Rad8 {[%clk 0:02:45]} 13. Nd5 {[%clk 0:02:46]}  Nxd5 {[%clk 0:02:42]} 14. exd5 {[%clk 0:02:45]}  Ne5 {[%clk 0:02:42]} 15. Qf2 {[%clk 0:02:35]}  Nc4 {[%clk 0:02:38]} 16. Bxc4 {[%clk 0:02:31]}  bxc4 {[%clk 0:02:35]} 17. Ne2 {[%clk 0:02:31]}  Rc8 {[%clk 0:02:26]} 18. c3 {[%clk 0:02:30]}  Qa5 {[%clk 0:02:16]} 19. Nf4 {[%clk 0:02:11]}  d6 {[%clk 0:02:10]} 20. a3 {[%clk 0:02:04]}  Qb5 {[%clk 0:01:55]} 21. Bd4 {[%clk 0:01:59]}  Be5 {[%clk 0:01:51]} 22. Qd2 {[%clk 0:01:22]}  Rfd8 {[%clk 0:01:46]} 23. Rfe1 {[%clk 0:00:57]}  Bxd4+ {[%clk 0:01:17]} 24. Qxd4 {[%clk 0:00:57]}  Rc7 {[%clk 0:01:16]} 25. Rd2 {[%clk 0:00:56]}  a5 {[%clk 0:01:15]} 26. Rde2 {[%clk 0:00:56]}  Rdd7 {[%clk 0:01:10]} 27. h4 {[%clk 0:00:52]}  Qc5 {[%clk 0:01:04]} 28. Rd2 {[%clk 0:00:44]}  Qxd4+ {[%clk 0:01:02]} 29. Rxd4 {[%clk 0:00:45]}  Rc5 {[%clk 0:01:02]} 30. Kf2 {[%clk 0:00:41]}  Kf8 {[%clk 0:01:02]} 31. g4 {[%clk 0:00:40]}  Rdc7 {[%clk 0:01:00]} 32. Ke3 {[%clk 0:00:35]}  Rb5 {[%clk 0:00:53]} 33. Re2 {[%clk 0:00:18]}  Rcc5 {[%clk 0:00:28]} 34. Red2 {[%clk 0:00:16]}  Ke8 {[%clk 0:00:28]} 35. Ke2 {[%clk 0:00:16]}  Ba6 {[%clk 0:00:25]} 36. Kd1 {[%clk 0:00:16]}  Rb3 {[%clk 0:00:25]} 37. Kc1 {[%clk 0:00:16]}  Rc7 {[%clk 0:00:24]} 38. Ng2 {[%clk 0:00:14]}  Rb5 {[%clk 0:00:22]} 39. Nf4 {[%clk 0:00:14]}  Rbc5 {[%clk 0:00:22]} 40. Nh3 {[%clk 0:00:15]}  h6 {[%clk 0:00:20]} 41. Nf2 {[%clk 0:00:15]}  Bb7 {[%clk 0:00:17]} 42. Ne4 {[%clk 0:00:16]}  Rb5 {[%clk 0:00:18]} 43. g5 {[%clk 0:00:13]}  h5 {[%clk 0:00:17]} 44. Ng3 {[%clk 0:00:13]}  Rcc5 {[%clk 0:00:16]} 45. a4 {[%clk 0:00:13]}  Rb6 {[%clk 0:00:16]} 46. f4 {[%clk 0:00:12]}  Bc8 {[%clk 0:00:15]} 47. Ne4 {[%clk 0:00:08]}  Rc7 {[%clk 0:00:15]} 48. Rd1 {[%clk 0:00:06]}  Bd7 {[%clk 0:00:15]} 49. Nd2 {[%clk 0:00:06]}  Bxa4 {[%clk 0:00:14]} 50. Nxc4 {[%clk 0:00:06]}  Bxd1 {[%clk 0:00:09]} 51. Nxb6 {[%clk 0:00:06]}  Bb3 {[%clk 0:00:09]} 52. Na4 {[%clk 0:00:05]}  Rb7 {[%clk 0:00:03]} 53. Kb1 {[%clk 0:00:03]}  Rb5 {[%clk 0:00:03]} 54. c4 {[%clk 0:00:01]}  Rb4 {[%clk 0:00:04]} 0-1


[Site "https://www.chess.com"]

[Event "Titled Tuesday Blitz June 6 Early 2023"]
[White "Baraeva, Irina"]
[Black "Manukyan, Sargis V."]
[WhiteFideId "24142565"]
[BlackFideId "13303465"]
[WhiteElo "2085"]
[BlackElo "2236"]
[Result "0-1"]
[Round "1"]
[TimeControl "180+2"]
[Date "2023.06.06"]
[WhiteClock "0:01:29"]
[BlackClock "0:00:54"]
[Board "135"]

1. d4 {[%clk 0:02:59]}  Nf6 {[%clk 0:02:58]} 2. c4 {[%clk 0:02:56]}  c5 {[%clk 0:02:58]} 3. d5 {[%clk 0:02:54]}  e6 {[%clk 0:02:59]} 4. Nc3 {[%clk 0:02:53]}  exd5 {[%clk 0:02:59]} 5. cxd5 {[%clk 0:02:53]}  Bd6 {[%clk 0:02:58]} 6. Nf3 {[%clk 0:02:52]}  O-O {[%clk 0:02:57]} 7. Bg5 {[%clk 0:02:51]}  h6 {[%clk 0:02:56]} 8. Bh4 {[%clk 0:02:50]}  Re8 {[%clk 0:02:54]} 9. e3 {[%clk 0:02:49]}  Bc7 {[%clk 0:02:50]} 10. Be2 {[%clk 0:02:47]}  d6 {[%clk 0:02:49]} 11. h3 {[%clk 0:02:46]}  Bf5 {[%clk 0:02:44]} 12. O-O {[%clk 0:02:46]}  Nbd7 {[%clk 0:02:43]} 13. Nd2 {[%clk 0:02:45]}  a6 {[%clk 0:02:39]} 14. a4 {[%clk 0:02:45]}  Rb8 {[%clk 0:02:38]} 15. e4 {[%clk 0:02:39]}  Bh7 {[%clk 0:02:34]} 16. Bd3 {[%clk 0:02:39]}  Ne5 {[%clk 0:02:25]} 17. Bc2 {[%clk 0:02:39]}  b5 {[%clk 0:02:24]} 18. axb5 {[%clk 0:02:38]}  axb5 {[%clk 0:02:25]} 19. f4 {[%clk 0:02:36]}  Ng6 {[%clk 0:02:03]} 20. Bg3 {[%clk 0:02:33]}  c4 {[%clk 0:01:59]} 21. Qf3 {[%clk 0:02:20]}  Bb6+ {[%clk 0:01:53]} 22. Kh2 {[%clk 0:02:19]}  Bd4 {[%clk 0:01:53]} 23. Rfe1 {[%clk 0:02:19]}  Qb6 {[%clk 0:01:47]} 24. Rab1 {[%clk 0:02:11]}  h5 {[%clk 0:01:43]} 25. Ne2 {[%clk 0:02:07]}  h4 {[%clk 0:01:40]} 26. Nxd4 {[%clk 0:01:59]}  hxg3+ {[%clk 0:01:39]} 27. Kxg3 {[%clk 0:01:54]}  Qxd4 {[%clk 0:01:39]} 28. Re2 {[%clk 0:01:54]}  Nxd5 {[%clk 0:01:21]} 29. f5 {[%clk 0:01:39]}  Ne5 {[%clk 0:01:03]} 30. Qh5 {[%clk 0:01:34]}  Nf6 {[%clk 0:01:02]} 31. Qh4 {[%clk 0:01:32]}  d5 {[%clk 0:00:57]} 32. exd5 {[%clk 0:01:30]}  Qxh4+ {[%clk 0:00:54]} 33. Kxh4 {[%clk 0:01:30]}  Nf3+ {[%clk 0:00:54]} 34. gxf3 {[%clk 0:01:29]}  Rxe2 {[%clk 0:00:54]} 0-1


[Site "https://www.chess.com"]

[Event "Titled Tuesday Blitz June 6 Early 2023"]
[White "Principe, Gerson"]
[Black "Lacasa Diaz, Jose Antonio"]
[WhiteFideId "3804550"]
[BlackFideId "2203375"]
[WhiteElo "2229"]
[BlackElo "2338"]
[Result "1-0"]
[Round "1"]
[TimeControl "180+2"]
[Date "2023.06.06"]
[WhiteClock "0:00:11"]
[BlackClock "0:00:15"]
[Board "136"]

1. Nf3 {[%clk 0:02:59]}  c5 {[%clk 0:02:58]} 2. e3 {[%clk 0:02:55]}  d5 {[%clk 0:02:51]} 3. b3 {[%clk 0:02:55]}  Nf6 {[%clk 0:02:48]} 4. Bb2 {[%clk 0:02:56]}  g6 {[%clk 0:02:48]} 5. Bxf6 {[%clk 0:02:44]}  exf6 {[%clk 0:02:49]} 6. c3 {[%clk 0:02:44]}  Be6 {[%clk 0:02:31]} 7. Be2 {[%clk 0:02:43]}  Nd7 {[%clk 0:02:30]} 8. O-O {[%clk 0:02:38]}  Bd6 {[%clk 0:02:03]} 9. c4 {[%clk 0:02:35]}  dxc4 {[%clk 0:01:58]} 10. Bxc4 {[%clk 0:02:34]}  Bxc4 {[%clk 0:01:57]} 11. bxc4 {[%clk 0:02:35]}  Qc7 {[%clk 0:01:55]} 12. Nc3 {[%clk 0:02:33]}  a6 {[%clk 0:01:53]} 13. Nd5 {[%clk 0:02:29]}  Qc6 {[%clk 0:01:50]} 14. Qb3 {[%clk 0:02:23]}  b5 {[%clk 0:01:44]} 15. Rac1 {[%clk 0:02:23]}  O-O {[%clk 0:01:37]} 16. Rfd1 {[%clk 0:02:20]}  Rab8 {[%clk 0:01:27]} 17. Qc3 {[%clk 0:02:17]}  Kg7 {[%clk 0:01:15]} 18. d4 {[%clk 0:01:59]}  Rfc8 {[%clk 0:00:52]} 19. Qd3 {[%clk 0:01:33]}  bxc4 {[%clk 0:00:43]} 20. Qxc4 {[%clk 0:01:28]}  Nb6 {[%clk 0:00:30]} 21. Nxb6 {[%clk 0:01:26]}  Qxb6 {[%clk 0:00:31]} 22. d5 {[%clk 0:01:10]}  Qb5 {[%clk 0:00:28]} 23. Qc2 {[%clk 0:01:05]}  Qb2 {[%clk 0:00:25]} 24. g3 {[%clk 0:01:00]}  Qxc2 {[%clk 0:00:24]} 25. Rxc2 {[%clk 0:01:00]}  Rb4 {[%clk 0:00:20]} 26. Rdc1 {[%clk 0:00:59]}  Rcb8 {[%clk 0:00:20]} 27. Nd2 {[%clk 0:00:58]}  Rb2 {[%clk 0:00:20]} 28. Nc4 {[%clk 0:00:58]}  Rxc2 {[%clk 0:00:20]} 29. Rxc2 {[%clk 0:00:59]}  Bc7 {[%clk 0:00:18]} 30. Kf1 {[%clk 0:00:57]}  Rb1+ {[%clk 0:00:18]} 31. Ke2 {[%clk 0:00:57]}  Kf8 {[%clk 0:00:18]} 32. h4 {[%clk 0:00:58]}  Ke7 {[%clk 0:00:18]} 33. e4 {[%clk 0:00:56]}  Bd6 {[%clk 0:00:18]} 34. Rb2 {[%clk 0:00:53]}  Rxb2+ {[%clk 0:00:17]} 35. Nxb2 {[%clk 0:00:53]}  Kd7 {[%clk 0:00:18]} 36. Nc4 {[%clk 0:00:52]}  h5 {[%clk 0:00:19]} 37. f4 {[%clk 0:00:52]}  Bc7 {[%clk 0:00:17]} 38. Kd3 {[%clk 0:00:48]}  Bb8 {[%clk 0:00:15]} 39. Kc3 {[%clk 0:00:46]}  Bc7 {[%clk 0:00:16]} 40. Kb3 {[%clk 0:00:46]}  Kc8 {[%clk 0:00:16]} 41. Kc3 {[%clk 0:00:36]}  Kd7 {[%clk 0:00:16]} 42. e5 {[%clk 0:00:34]}  fxe5 {[%clk 0:00:16]} 43. fxe5 {[%clk 0:00:35]}  Bd8 {[%clk 0:00:16]} 44. Kd3 {[%clk 0:00:35]}  Bc7 {[%clk 0:00:15]} 45. Ke4 {[%clk 0:00:35]}  Bd8 {[%clk 0:00:16]} 46. Nd6 {[%clk 0:00:34]}  f6 {[%clk 0:00:14]} 47. Nf7 {[%clk 0:00:28]}  fxe5 {[%clk 0:00:14]} 48. Nxe5+ {[%clk 0:00:28]}  Kc7 {[%clk 0:00:11]} 49. Nxg6 {[%clk 0:00:28]}  Bf6 {[%clk 0:00:10]} 50. Nf4 {[%clk 0:00:26]}  c4 {[%clk 0:00:10]} 51. Nxh5 {[%clk 0:00:26]}  Bh8 {[%clk 0:00:10]} 52. Nf4 {[%clk 0:00:26]}  c3 {[%clk 0:00:10]} 53. Kd3 {[%clk 0:00:25]}  Kd6 {[%clk 0:00:11]} 54. Ne2 {[%clk 0:00:22]}  Kxd5 {[%clk 0:00:11]} 55. Nxc3+ {[%clk 0:00:22]}  Ke5 {[%clk 0:00:12]} 56. Ne2 {[%clk 0:00:22]}  Kf5 {[%clk 0:00:12]} 57. Ke3 {[%clk 0:00:22]}  Kg4 {[%clk 0:00:13]} 58. Ke4 {[%clk 0:00:14]}  Bg7 {[%clk 0:00:12]} 59. Nf4 {[%clk 0:00:11]}  Bh8 {[%clk 0:00:10]} 60. h5 {[%clk 0:00:11]}  Kxg3 {[%clk 0:00:10]} 61. h6 {[%clk 0:00:10]}  Kf2 {[%clk 0:00:10]} 62. Kf5 {[%clk 0:00:08]}  Ke1 {[%clk 0:00:10]} 63. Kg6 {[%clk 0:00:08]}  Kd2 {[%clk 0:00:09]} 64. Kh7 {[%clk 0:00:07]}  Bb2 {[%clk 0:00:09]} 65. Kg6 {[%clk 0:00:07]}  Kc2 {[%clk 0:00:09]} 66. Nh5 {[%clk 0:00:07]}  Bh8 {[%clk 0:00:08]} 67. Ng7 {[%clk 0:00:05]}  Kb2 {[%clk 0:00:08]} 68. Kh7 {[%clk 0:00:06]}  Kxa2 {[%clk 0:00:07]} 69. Kxh8 {[%clk 0:00:06]}  Kb1 {[%clk 0:00:07]} 70. Kg8 {[%clk 0:00:07]}  a5 {[%clk 0:00:08]} 71. h7 {[%clk 0:00:08]}  a4 {[%clk 0:00:09]} 72. h8=Q {[%clk 0:00:09]}  a3 {[%clk 0:00:10]} 73. Qh1+ {[%clk 0:00:09]}  Kb2 {[%clk 0:00:10]} 74. Qg2+ {[%clk 0:00:10]}  Kb1 {[%clk 0:00:11]} 75. Qf1+ {[%clk 0:00:10]}  Kb2 {[%clk 0:00:11]} 76. Qe2+ {[%clk 0:00:11]}  Kb1 {[%clk 0:00:12]} 77. Qd1+ {[%clk 0:00:11]}  Kb2 {[%clk 0:00:13]} 78. Qd4+ {[%clk 0:00:12]}  Kb1 {[%clk 0:00:14]} 79. Qb4+ {[%clk 0:00:12]}  Ka2 {[%clk 0:00:14]} 80. Kf7 {[%clk 0:00:11]}  Ka1 {[%clk 0:00:15]} 81. Qxa3+ {[%clk 0:00:11]} 1-0


[Site "https://www.chess.com"]

[Event "Titled Tuesday Blitz June 6 Early 2023"]
[White "Li, Hui"]
[Black "Budisavljevic, Luka"]
[WhiteFideId "15400310"]
[BlackFideId "960047"]
[WhiteElo "1966"]
[BlackElo "2419"]
[Result "1-0"]
[Round "1"]
[TimeControl "180+2"]
[Date "2023.06.06"]
[WhiteClock "0:00:16"]
[BlackClock "0:01:57"]
[Board "137"]

1. e4 {[%clk 0:02:54]}  c6 {[%clk 0:02:59]} 2. d4 {[%clk 0:02:54]}  d5 {[%clk 0:03:00]} 3. Nd2 {[%clk 0:02:55]}  g6 {[%clk 0:02:59]} 4. Ngf3 {[%clk 0:02:52]}  Bg7 {[%clk 0:02:59]} 5. h3 {[%clk 0:02:53]}  dxe4 {[%clk 0:02:47]} 6. Nxe4 {[%clk 0:02:51]}  Nf6 {[%clk 0:02:48]} 7. Nxf6+ {[%clk 0:02:51]}  exf6 {[%clk 0:02:49]} 8. Bd3 {[%clk 0:02:40]}  O-O {[%clk 0:02:50]} 9. O-O {[%clk 0:02:40]}  a5 {[%clk 0:02:51]} 10. a4 {[%clk 0:02:39]}  Na6 {[%clk 0:02:51]} 11. c3 {[%clk 0:02:38]}  Be6 {[%clk 0:02:52]} 12. Re1 {[%clk 0:02:37]}  Nc7 {[%clk 0:02:52]} 13. Bd2 {[%clk 0:02:21]}  h6 {[%clk 0:02:49]} 14. Qc2 {[%clk 0:02:11]}  f5 {[%clk 0:02:48]} 15. Ne5 {[%clk 0:02:06]}  Nd5 {[%clk 0:02:48]} 16. Nxg6 {[%clk 0:01:54]}  fxg6 {[%clk 0:02:42]} 17. Rxe6 {[%clk 0:01:53]}  Kh7 {[%clk 0:02:43]} 18. Rae1 {[%clk 0:01:49]}  Rf7 {[%clk 0:02:42]} 19. g3 {[%clk 0:01:20]}  Nc7 {[%clk 0:02:41]} 20. R6e2 {[%clk 0:01:16]}  Qf6 {[%clk 0:02:42]} 21. h4 {[%clk 0:01:10]}  Kh8 {[%clk 0:02:39]} 22. Bc4 {[%clk 0:01:03]}  Rd7 {[%clk 0:02:36]} 23. Bf4 {[%clk 0:00:56]}  Rf8 {[%clk 0:02:31]} 24. Be5 {[%clk 0:00:49]}  Qd8 {[%clk 0:02:29]} 25. Bf4 {[%clk 0:00:36]}  g5 {[%clk 0:02:12]} 26. hxg5 {[%clk 0:00:35]}  hxg5 {[%clk 0:02:13]} 27. Be5 {[%clk 0:00:35]}  Nd5 {[%clk 0:02:10]} 28. Bxg7+ {[%clk 0:00:32]}  Rxg7 {[%clk 0:02:09]} 29. Bxd5 {[%clk 0:00:27]}  Qxd5 {[%clk 0:02:07]} 30. Re5 {[%clk 0:00:25]}  Qf3 {[%clk 0:02:05]} 31. Qe2 {[%clk 0:00:25]}  Qxe2 {[%clk 0:01:59]} 32. R1xe2 {[%clk 0:00:26]}  Kg8 {[%clk 0:01:59]} 33. Re7 {[%clk 0:00:24]}  Rb8 {[%clk 0:01:50]} 34. R2e5 {[%clk 0:00:21]}  Rxe7 {[%clk 0:01:49]} 35. Rxe7 {[%clk 0:00:22]}  b5 {[%clk 0:01:50]} 36. Ra7 {[%clk 0:00:18]}  bxa4 {[%clk 0:01:49]} 37. Rxa5 {[%clk 0:00:19]}  Rxb2 {[%clk 0:01:50]} 38. Rxa4 {[%clk 0:00:19]}  Rc2 {[%clk 0:01:50]} 39. Rc4 {[%clk 0:00:19]}  f4 {[%clk 0:01:51]} 40. gxf4 {[%clk 0:00:19]}  gxf4 {[%clk 0:01:52]} 41. Kg2 {[%clk 0:00:19]}  Kf7 {[%clk 0:01:53]} 42. Rxc6 {[%clk 0:00:19]}  Ke7 {[%clk 0:01:53]} 43. Kf3 {[%clk 0:00:20]}  Kd7 {[%clk 0:01:53]} 44. Rc5 {[%clk 0:00:20]}  Kd6 {[%clk 0:01:54]} 45. Kxf4 {[%clk 0:00:20]}  Rxf2+ {[%clk 0:01:54]} 46. Ke3 {[%clk 0:00:21]}  Rh2 {[%clk 0:01:53]} 47. Rf5 {[%clk 0:00:19]}  Rh3+ {[%clk 0:01:54]} 48. Kd2 {[%clk 0:00:18]}  Rh1 {[%clk 0:01:55]} 49. Kd3 {[%clk 0:00:18]}  Rd1+ {[%clk 0:01:53]} 50. Kc4 {[%clk 0:00:18]}  Rh1 {[%clk 0:01:54]} 51. Rf6+ {[%clk 0:00:18]}  Ke7 {[%clk 0:01:55]} 52. Ra6 {[%clk 0:00:18]}  Rh5 {[%clk 0:01:56]} 53. d5 {[%clk 0:00:17]}  Rh2 {[%clk 0:01:55]} 54. Kc5 {[%clk 0:00:16]}  Rc2 {[%clk 0:01:55]} 55. c4 {[%clk 0:00:16]}  Rd2 {[%clk 0:01:56]} 56. Ra7+ {[%clk 0:00:16]}  Kf6 {[%clk 0:01:57]} 57. Kc6 {[%clk 0:00:17]}  Rd4 {[%clk 0:01:57]} 58. c5 {[%clk 0:00:17]}  Ra4 {[%clk 0:01:57]} 59. Rxa4 {[%clk 0:00:16]} 1-0


[Site "https://www.chess.com"]

[Event "Titled Tuesday Blitz June 6 Early 2023"]
[White "Buscar, Michael"]
[Black "Aldokhin, Ivan"]
[WhiteFideId "2603616"]
[BlackFideId "24115720"]
[WhiteElo "2010"]
[BlackElo "2322"]
[Result "0-1"]
[Round "1"]
[TimeControl "180+2"]
[Date "2023.06.06"]
[WhiteClock "0:02:12"]
[BlackClock "0:02:54"]
[Board "139"]

1. d4 {[%clk 0:02:57]}  Nf6 {[%clk 0:02:54]} 2. c4 {[%clk 0:02:57]}  g6 {[%clk 0:02:55]} 3. Nc3 {[%clk 0:02:57]}  Bg7 {[%clk 0:02:54]} 4. e4 {[%clk 0:02:58]}  d6 {[%clk 0:02:54]} 5. Nf3 {[%clk 0:02:58]}  O-O {[%clk 0:02:54]} 6. Be2 {[%clk 0:02:59]}  Nc6 {[%clk 0:02:55]} 7. h3 {[%clk 0:02:59]}  Re8 {[%clk 0:02:55]} 8. Be3 {[%clk 0:02:58]}  e5 {[%clk 0:02:54]} 9. d5 {[%clk 0:02:58]}  Nd4 {[%clk 0:02:54]} 10. Nxd4 {[%clk 0:02:53]}  exd4 {[%clk 0:02:55]} 11. Bxd4 {[%clk 0:02:51]}  Nxe4 {[%clk 0:02:56]} 12. Bxg7 {[%clk 0:02:49]}  Kxg7 {[%clk 0:02:57]} 13. Qd4+ {[%clk 0:02:27]}  Qf6 {[%clk 0:02:56]} 14. Qxf6+ {[%clk 0:02:27]}  Kxf6 {[%clk 0:02:55]} 15. Nxe4+ {[%clk 0:02:24]}  Rxe4 {[%clk 0:02:56]} 16. Kd2 {[%clk 0:02:20]}  Bf5 {[%clk 0:02:54]} 17. Bd3 {[%clk 0:02:12]}  Rd4 {[%clk 0:02:54]} 0-1


[Site "https://www.chess.com"]

[Event "Titled Tuesday Blitz June 6 Early 2023"]
[White "Turayev, Shahruh"]
[Black "Putri, Regita Desyari"]
[WhiteFideId "14003856"]
[BlackFideId "7109083"]
[WhiteElo "2113"]
[BlackElo "1930"]
[Result "1-0"]
[Round "1"]
[TimeControl "180+2"]
[Date "2023.06.06"]
[WhiteClock "0:01:04"]
[BlackClock "0:00:35"]
[Board "142"]

1. e4 {[%clk 0:02:58]}  e5 {[%clk 0:02:57]} 2. Nc3 {[%clk 0:02:59]}  Nf6 {[%clk 0:02:55]} 3. Bc4 {[%clk 0:02:58]}  Nc6 {[%clk 0:02:49]} 4. d3 {[%clk 0:02:58]}  Na5 {[%clk 0:02:44]} 5. Bb3 {[%clk 0:02:56]}  Nxb3 {[%clk 0:02:44]} 6. axb3 {[%clk 0:02:57]}  h6 {[%clk 0:02:40]} 7. f4 {[%clk 0:02:55]}  d6 {[%clk 0:02:30]} 8. Nf3 {[%clk 0:02:55]}  Bg4 {[%clk 0:02:25]} 9. O-O {[%clk 0:02:53]}  Be7 {[%clk 0:02:22]} 10. Qe1 {[%clk 0:02:50]}  O-O {[%clk 0:02:21]} 11. Qg3 {[%clk 0:02:49]}  exf4 {[%clk 0:02:15]} 12. Bxf4 {[%clk 0:02:46]}  Kh8 {[%clk 0:02:10]} 13. Nd5 {[%clk 0:02:32]}  Bxf3 {[%clk 0:02:06]} 14. Nxe7 {[%clk 0:02:31]}  Qxe7 {[%clk 0:02:02]} 15. Qxf3 {[%clk 0:02:30]}  Nd7 {[%clk 0:01:55]} 16. Ra5 {[%clk 0:02:21]}  Ne5 {[%clk 0:01:47]} 17. Qg3 {[%clk 0:02:17]}  Ng6 {[%clk 0:01:46]} 18. Be3 {[%clk 0:02:05]}  a6 {[%clk 0:01:40]} 19. Rh5 {[%clk 0:02:03]}  Kh7 {[%clk 0:01:38]} 20. Qh3 {[%clk 0:01:55]}  Rh8 {[%clk 0:01:32]} 21. Rhf5 {[%clk 0:01:43]}  Raf8 {[%clk 0:01:26]} 22. Bd4 {[%clk 0:01:38]}  f6 {[%clk 0:01:21]} 23. Rh5 {[%clk 0:01:15]}  Rf7 {[%clk 0:01:13]} 24. Be3 {[%clk 0:01:14]}  Qd7 {[%clk 0:01:03]} 25. Rxh6+ {[%clk 0:01:07]}  gxh6 {[%clk 0:01:01]} 26. Qxh6+ {[%clk 0:01:08]}  Kg8 {[%clk 0:01:00]} 27. Qxg6+ {[%clk 0:01:09]}  Rg7 {[%clk 0:01:00]} 28. Qxf6 {[%clk 0:01:09]}  Rh5 {[%clk 0:00:43]} 29. Bd4 {[%clk 0:01:05]}  Rf7 {[%clk 0:00:35]} 30. Qg6+ {[%clk 0:01:05]}  Kf8 {[%clk 0:00:35]} 31. Qxh5 {[%clk 0:01:04]} 1-0


[Site "https://www.chess.com"]

[Event "Titled Tuesday Blitz June 6 Early 2023"]
[White "Gavrilov, Maxim"]
[Black "Chuemsakul, Sarocha"]
[WhiteFideId "24271454"]
[BlackFideId "6203710"]
[WhiteElo "1969"]
[BlackElo "1686"]
[Result "1/2-1/2"]
[Round "1"]
[TimeControl "180+2"]
[Date "2023.06.06"]
[WhiteClock "0:00:09"]
[BlackClock "0:00:07"]
[Board "144"]

1. d4 {[%clk 0:02:59]}  Nf6 {[%clk 0:02:58]} 2. c4 {[%clk 0:02:59]}  g6 {[%clk 0:02:58]} 3. Nf3 {[%clk 0:02:59]}  Bg7 {[%clk 0:02:58]} 4. g3 {[%clk 0:02:59]}  O-O {[%clk 0:02:57]} 5. Bg2 {[%clk 0:03:00]}  d6 {[%clk 0:02:58]} 6. O-O {[%clk 0:03:01]}  c5 {[%clk 0:02:58]} 7. Nc3 {[%clk 0:03:00]}  Nc6 {[%clk 0:02:58]} 8. d5 {[%clk 0:02:57]}  Na5 {[%clk 0:02:58]} 9. Nd2 {[%clk 0:02:57]}  e5 {[%clk 0:02:50]} 10. b3 {[%clk 0:02:53]}  a6 {[%clk 0:02:49]} 11. Bb2 {[%clk 0:02:47]}  Bd7 {[%clk 0:02:50]} 12. a3 {[%clk 0:02:44]}  b5 {[%clk 0:02:49]} 13. cxb5 {[%clk 0:02:39]}  axb5 {[%clk 0:02:49]} 14. b4 {[%clk 0:02:39]}  Nb7 {[%clk 0:02:42]} 15. Rc1 {[%clk 0:02:26]}  Qb6 {[%clk 0:02:41]} 16. Nce4 {[%clk 0:02:19]}  Nxe4 {[%clk 0:02:40]} 17. Nxe4 {[%clk 0:02:17]}  Rfc8 {[%clk 0:02:34]} 18. Qd2 {[%clk 0:02:10]}  h6 {[%clk 0:02:28]} 19. bxc5 {[%clk 0:02:05]}  Nxc5 {[%clk 0:02:26]} 20. Nxc5 {[%clk 0:02:03]}  Rxc5 {[%clk 0:02:27]} 21. Rxc5 {[%clk 0:01:50]}  Qxc5 {[%clk 0:02:28]} 22. Rc1 {[%clk 0:01:50]}  Qb6 {[%clk 0:02:28]} 23. Qb4 {[%clk 0:01:36]}  Ra4 {[%clk 0:02:25]} 24. Qb3 {[%clk 0:01:36]}  Ra8 {[%clk 0:01:42]} 25. e3 {[%clk 0:01:22]}  h5 {[%clk 0:01:41]} 26. Bf1 {[%clk 0:01:21]}  h4 {[%clk 0:01:06]} 27. Rc4 {[%clk 0:01:11]}  hxg3 {[%clk 0:01:06]} 28. hxg3 {[%clk 0:01:09]}  Rc8 {[%clk 0:00:36]} 29. Rb4 {[%clk 0:01:06]}  Qc5 {[%clk 0:00:14]} 30. Bxb5 {[%clk 0:00:59]}  Bxb5 {[%clk 0:00:15]} 31. Rxb5 {[%clk 0:00:59]}  Qc2 {[%clk 0:00:15]} 32. Qxc2 {[%clk 0:00:52]}  Rxc2 {[%clk 0:00:16]} 33. a4 {[%clk 0:00:52]}  e4 {[%clk 0:00:16]} 34. Bxg7 {[%clk 0:00:44]}  Kxg7 {[%clk 0:00:17]} 35. Rb4 {[%clk 0:00:45]}  f5 {[%clk 0:00:13]} 36. Rb6 {[%clk 0:00:27]}  Ra2 {[%clk 0:00:11]} 37. Ra6 {[%clk 0:00:25]}  Kf7 {[%clk 0:00:11]} 38. a5 {[%clk 0:00:23]}  Ke7 {[%clk 0:00:10]} 39. Kg2 {[%clk 0:00:23]}  Rd2 {[%clk 0:00:10]} 40. Ra7+ {[%clk 0:00:23]}  Kf6 {[%clk 0:00:11]} 41. a6 {[%clk 0:00:17]}  Rxd5 {[%clk 0:00:12]} 42. Rh7 {[%clk 0:00:18]}  Ra5 {[%clk 0:00:12]} 43. a7 {[%clk 0:00:19]}  d5 {[%clk 0:00:10]} 44. Kf1 {[%clk 0:00:19]}  Ke5 {[%clk 0:00:09]} 45. Ke2 {[%clk 0:00:19]}  g5 {[%clk 0:00:08]} 46. Re7+ {[%clk 0:00:18]}  Kf6 {[%clk 0:00:08]} 47. Rd7 {[%clk 0:00:18]}  Ke6 {[%clk 0:00:09]} 48. Rg7 {[%clk 0:00:19]}  Kf6 {[%clk 0:00:09]} 49. Rb7 {[%clk 0:00:20]}  Ke5 {[%clk 0:00:09]} 50. Kd2 {[%clk 0:00:19]}  f4 {[%clk 0:00:07]} 51. gxf4+ {[%clk 0:00:20]}  gxf4 {[%clk 0:00:07]} 52. Rf7 {[%clk 0:00:19]}  f3 {[%clk 0:00:06]} 53. Kc3 {[%clk 0:00:19]}  Kd6 {[%clk 0:00:04]} 54. Kb4 {[%clk 0:00:17]}  Ra1 {[%clk 0:00:04]} 55. Kb5 {[%clk 0:00:17]}  Ke6 {[%clk 0:00:03]} 56. Rh7 {[%clk 0:00:16]}  d4 {[%clk 0:00:04]} 57. exd4 {[%clk 0:00:16]}  e3 {[%clk 0:00:04]} 58. d5+ {[%clk 0:00:15]}  Kxd5 {[%clk 0:00:05]} 59. fxe3 {[%clk 0:00:15]}  Ke6 {[%clk 0:00:05]} 60. Kb6 {[%clk 0:00:10]}  f2 {[%clk 0:00:05]} 61. Rh6+ {[%clk 0:00:10]}  Ke5 {[%clk 0:00:05]} 62. Rh5+ {[%clk 0:00:11]}  Ke4 {[%clk 0:00:05]} 63. Rh4+ {[%clk 0:00:08]}  Kxe3 {[%clk 0:00:05]} 64. Rh3+ {[%clk 0:00:09]}  Ke4 {[%clk 0:00:05]} 65. Rh4+ {[%clk 0:00:09]}  Kf5 {[%clk 0:00:06]} 66. Rh8 {[%clk 0:00:08]}  Rxa7 {[%clk 0:00:04]} 67. Rf8+ {[%clk 0:00:08]}  Ke4 {[%clk 0:00:04]} 68. Kxa7 {[%clk 0:00:08]}  Ke3 {[%clk 0:00:05]} 69. Re8+ {[%clk 0:00:07]}  Kd2 {[%clk 0:00:05]} 70. Rf8 {[%clk 0:00:08]}  Ke2 {[%clk 0:00:06]} 71. Kb6 {[%clk 0:00:08]}  f1=Q {[%clk 0:00:06]} 72. Rxf1 {[%clk 0:00:09]}  Kxf1 {[%clk 0:00:07]} 1/2-1/2


[Site "https://www.chess.com"]